[Event "Hungarian Championship Women 2022"]
[Site "Budapest"]
[Date "2022.12.08"]
[Round "4.1"]
[White "Terbe, Zsuzsanna"]
[Black "Ivan-Gal, Hanna Krisztina"]
[Result "1/2-1/2"]
[ECO "E73"]
[WhiteElo "2114"]
[BlackElo "2164"]
[Annotator "TA"]
[PlyCount "126"]
[EventDate "2022.12.03"]
[EventType "tourn"]
[EventCountry "HUN"]
[SourceTitle "playchess.com"]
[Source "ChessBase"]
[SourceQuality "1"]
[TimeControl "40/5400+30:1800+30"]

{[%evp 18,126,29,12,56,33,33,27,39,38,33,39,47,48,90,78,118,91,87,89,77,81,70,75,232,142,145,81,114,0,0,0,46,46,53,37,49,45,50,41,79,84,84,76,66,29,31,35,44,44,35,18,18,18,31,14,16,14,14,14,20,18,46,0,8,8,70,43,73,67,67,73,73,73,73,0,0,0,0,0,0,0,0,0,0,0,8,8,8,8,8,8,8,8,8,8,8,8,8,8,8,8,8,8,8,0,8,0,8,0,8]} 1. d4 {[%emt 0:00:32]} Nf6 {[%emt 0:00:37]} 2. c4 {[%emt 0:00:07]} g6 {[%emt 0:00:10]} 3. Nc3 {[%emt 0:00:05]} Bg7 {[%emt 0:00:07]} 4. e4 {[%emt 0:00:05]} d6 {[%emt 0:00:10]} 5. Be2 {[%emt 0:00:05]} O-O {[%emt 0:00:20]} 6. Bg5 {[%emt 0:00:05]} c5 {[%emt 0:00:41]} 7. d5 {[%emt 0:02:40]} h6 {[%emt 0:00:35]} 8. Be3 {[%emt 0:00:21]} e6 {[%emt 0:00:43]} 9. dxe6 {[%emt 0:00:18]} Bxe6 {[%emt 0:00:31]} 10. Qd2 {[%emt 0:00:22]} Qb6 {[%emt 0:05:28] [#] E74: King's Indian: Averbakh Variation: 6...c5.} 11. Rc1 $146 {[%emt 0:01:32]} ({Predecessor:} 11. Bxh6 Bxh6 12. Qxh6 Qxb2 13. Rc1 Nc6 14. h4 Ne5 15. h5 Nfg4 16. Qf4 Nxf2 17. Qxf2 Qxc1+ 18. Nd1 g5 19. Nh3 f6 20. O-O Qc2 21. Ne3 Qxe4 22. Qg3 Kh8 23. h6 Rae8 24. Bh5 Nxc4 25. Re1 Bxh3 26. Bxe8 Rxe8 27. Nc2 Qxg2+ {0-1 (27) Kryakvin,D (2570)-Gochelashvili,D (2411) Sochi 2021}) 11... Kh7 {[%emt 0:01:22]} 12. h3 {[%emt 0:00:32]} Nc6 {[%emt 0:02:30] White has an edge.} 13. Nf3 {[%emt 0:00:41]} Nd7 {[%emt 0:02:55]} 14. b3 {[%emt 0:08:43]} Nd4 {[%emt 0:05:53]} 15. O-O {[%emt 0:17:22]} Nxf3+ {[%emt 0:07:32]} 16. Bxf3 {[%emt 0:00:15]} Ne5 {[%emt 0:00:20]} 17. Be2 {[%emt 0:00:35]} Nc6 {[%emt 0:05:57]} 18. f4 {[%emt 0:08:40]} (18. Qxd6 Bxc3 19. Rxc3 Nd4 20. Qxb6 Nxe2+ 21. Kh2 axb6) (18. Qxd6 $2 Bxc3 19. Rxc3 Nd4 20. Qxb6 Nxe2+ 21. Kh2 axb6 $19) 18... f5 {[%emt 0:07:17]} 19. exf5 {[%emt 0:08:50]} (19. Qxd6 Bxc3 20. Qxe6 Rae8 21. Qd7+ Bg7 $17) 19... Bxf5 {[%emt 0:05:04]} 20. g4 {[%emt 0:01:56]} (20. Qxd6 Nd4 21. Qxb6 Nxe2+ 22. Nxe2 axb6 $11) 20... Be6 {[%emt 0:11:02]} (20... Bd7 $16 {keeps fighting.}) 21. Bd3 {[%emt 0:12:12]} (21. Qxd6 Bxc3 22. Rxc3 (22. Qxe6 Rfe8 $17) 22... Nd4 23. Qxb6 (23. Qe7+ $2 Rf7 $19) 23... Nxe2+ 24. Kf2 axb6 $11) 21... Qd8 {[%emt 0:07:51]} 22. f5 {[%emt 0:04:09]} (22. Bxg6+ Kxg6 23. Qd3+ (23. f5+ Bxf5 24. Rxf5 Rxf5 $11) 23... Kf7 $16) ({Better is} 22. Nb5) 22... Qh4 $16 {[%emt 0:01:06]} 23. fxg6+ {[%emt 0:06:19]} (23. fxe6 $6 Qg3+ 24. Kh1 Qxh3+ 25. Kg1 Qg3+ 26. Kh1 Qh3+ 27. Kg1 Qg3+ 28. Kh1 Qh3+ $11) (23. Qg2 $16 gxf5 24. gxf5) 23... Kh8 $11 {[%emt 0:00:41]} 24. Qg2 {[%emt 0:00:22] Prevents Qg3. And now Nb5 would win. Chess con chili.} Ne5 {[%emt 0:04:46]} (24... Rxf1+ $11 {might be stronger.} 25. Bxf1 Rf8) 25. Bf5 $14 {[%emt 0:02:44]} Bxf5 {[%emt 0:00:47]} 26. gxf5 {[%emt 0:00:30] Hoping for Nd5.} Qh5 $1 {[%emt 0:01:53]} 27. Ne4 {[%emt 0:06:58][%cal Bc3e4,Be4d6,Bd6f5][%mdl 32]} (27. Qxb7 Qxh3 28. Nd1 Rae8 $17) 27... Rxf5 {[%emt 0:02:12]} 28. Nxd6 {[%emt 0:00:42]} Rxf1+ {[%emt 0:02:04]} 29. Rxf1 {[%emt 0:00:07]} Nxg6 {[%emt 0:02:20]} 30. Nf5 {[%emt 0:01:42] White is much more active.} (30. Nxb7 $6 Qe5 31. Qxg6 (31. Nxc5 $2 Qxe3+ 32. Kh1 Rf8 $19) (31. Bxc5 Nh4 $11) 31... Qxe3+ 32. Kg2 Rg8 $15) 30... Rg8 {[%emt 0:01:54]} 31. Qg4 {[%emt 0:04:30] Against Nh4} (31. Bxc5 $2 Be5 32. Kh1 (32. Qxb7 Nf4+) 32... Nf4 $19) (31. Qxb7 $2 Bd4 32. Bxd4+ Ne5+ 33. Kh2 cxd4 $19) (31. Qf3 {simplifies} Qxf3 32. Rxf3 Bf8 33. Kf1) 31... Qxg4+ {[%emt 0:00:21]} 32. hxg4 {[%emt 0:00:02]} Ne5 $1 {[%emt 0:02:35]} 33. Bxc5 {[%emt 0:00:52]} (33. Nxh6 $2 {perishes.} Bxh6 34. Bxc5 (34. Bxh6 $2 Nxg4 35. Bd2 Ne3+ 36. Kf2 Nxf1 $19) 34... Rxg4+ 35. Kh2 Bf4+ 36. Kh3 Rg3+ 37. Kh2 Nf3+ 38. Kh1 a6 $19) 33... Nxg4 {[%emt 0:02:32]} 34. Nxg7 {[%emt 0:00:46]} Kxg7 {[%emt 0:01:03]} 35. Bxa7 {[%emt 0:00:55][%mdl 4096] Endgame KRB-KRN} Ra8 {[%emt 0:03:32]} 36. Bd4+ {[%emt 0:00:35]} Kg6 {[%emt 0:00:11]} 37. a4 {[%emt 0:00:45]} Rd8 {[%emt 0:00:37]} 38. Bb6 {[%emt 0:03:01]} Rd2 {[%emt 0:01:22]} 39. a5 {[%emt 0:02:17]} h5 {[%emt 0:00:44]} 40. Rf8 {[%emt 0:00:00]} (40. Bc7 $14) 40... Rd1+ {[%emt 0:00:00]} 41. Kg2 {[%emt 0:02:56]} Rd2+ {[%emt 0:05:33]} (41... Rb1 $11) 42. Kg3 {[%emt 0:01:40] Threatens to win with Kf4.} (42. Kf3 $5 {[%cal Rf3f4]}) 42... Rd3+ {[%emt 0:01:20]} 43. Rf3 {[%emt 0:01:12]} Rxf3+ {[%emt 0:01:26]} 44. Kxf3 {[%emt 0:00:09] KB-KN} Ne5+ {[%emt 0:00:02] [#]} 45. Ke4 $1 {[%emt 0:06:57]} Nc6 {[%emt 0:00:13] [#]} 46. Kd5 {[%emt 0:01:24]} (46. a6 $1 $16 {[%cal Ra6a7] aiming for a7.} bxa6 47. Kd5 Nb4+ 48. Ke6) 46... h4 $11 {[%emt 0:00:18] The position is equal.} 47. Bc7 {[%emt 0:02:35] Strongly threatening Kc5.} h3 {[%emt 0:04:33]} 48. Kc5 {[%emt 0:04:06]} Nxa5 $1 {[%mdl 64]} 49. b4 {[%emt 0:00:35]} Nc6 {[%emt 0:03:16]} 50. b5 {[%emt 0:00:16]} Nd8 {[%emt 0:02:36] ( -> ...Ne6+)} 51. Bg3 {[%emt 0:03:11]} Kf7 {[%emt 0:00:30]} 52. Kd6 {[%emt 0:00:28]} Ke8 {[%emt 0:00:04]} 53. c5 {[%emt 0:00:25]} Nf7+ {[%emt 0:00:33]} 54. Kc7 {[%emt 0:00:05]} Nd8 {[%emt 0:00:06]} 55. b6 {[%emt 0:08:00]} Ke7 {[%emt 0:02:08]} 56. Bd6+ {[%emt 0:00:59]} (56. Kc8 $5) 56... Ke8 {[%emt 0:00:12]} 57. Kc8 $1 {[%emt 0:00:20]} Nf7 {[%emt 0:02:22]} 58. Bh2 {[%emt 0:02:29] Threatening mate with c6.} Nd8 {[%emt 0:00:03]} 59. Bg3 {[%emt 0:00:21]} (59. Bc7 $5) 59... Ke7 {[%emt 0:00:11]} 60. Bc7 {[%emt 0:00:57]} Ke8 {[%emt 0:00:08]} 61. Bd6 {[%emt 0:06:34]} Nf7 {[%emt 0:00:12]} 62. Kc7 {[%emt 0:00:14] Black must now prevent c6.} Nd8 {[%emt 0:02:09]} (62... Nxd6 $2 63. cxd6 h2 64. d7+ (64. Kxb7 {gets mated.} h1=Q+ 65. Ka6 Qc6 66. Ka5 Qc5+ 67. Ka4 Qxb6 68. Ka3 Qb1 69. Ka4 Kd7 70. Ka3 Kxd6 71. Ka4 Kc6 72. Ka3 Kc5 73. Ka4 Qb4#) 64... Kf7 65. d8=Q $18 (65. d8=R $2 {is the wrong capture.} h1=Q $19)) 63. Bg3 {[%emt 0:00:51]} Ke7 {[%emt 0:00:50] Weighted Error Value: White=0.11 (very precise) /Black=0.12 (very precise)} 1/2-1/2

[Event "Hungarian Championship Women 2022"]
[Site "Budapest"]
[Date "2022.12.08"]
[Round "4.2"]
[White "Dudas, Eszter"]
[Black "Terbe, Julianna"]
[Result "1-0"]
[ECO "C84"]
[WhiteElo "2135"]
[BlackElo "2282"]
[Annotator "TA"]
[PlyCount "155"]
[EventDate "2022.12.03"]
[EventType "tourn"]
[EventCountry "HUN"]
[SourceTitle "playchess.com"]
[Source "ChessBase"]
[SourceQuality "1"]
[TimeControl "40/5400+30:1800+30"]

{[%evp 11,155,14,18,0,22,0,0,0,20,11,25,0,23,22,33,27,40,40,41,14,32,12,31,16,32,33,27,32,57,65,65,72,97,100,95,90,104,96,239,228,233,212,256,246,428,434,403,388,444,452,453,440,430,443,442,414,410,402,411,406,389,249,260,255,236,188,183,184,175,118,259,259,410,386,390,369,436,425,388,342,1308,1225,1087,987,29964,29966,29966,29965,29967,29970,29969,29970,29971,29971,29967,29958,29946,29953,29955,29956,29958,29960,29961,29960,29962,29961,29961,29962,29961,29954,29959,29961,29956,29963,29963,29964,29962,29961,29965,29967,29968,29970,29971,29963,29974,29974,29978,29979,29980,29981,29981,29982,29982,29983,29983,29984,29984,29985,29987,29988,29991,29991,29991,29992,29993,29991]} 1. e4 {[%emt 0:00:33]} e5 {[%emt 0:02:18]} 2. Nf3 {[%emt 0:00:08]} Nc6 {[%emt 0:00:38]} 3. Bb5 {[%emt 0:00:17]} a6 {[%emt 0:00:13]} 4. Ba4 {[%emt 0:00:06]} Nf6 {[%emt 0:00:07]} 5. O-O {[%emt 0:00:34]} Be7 {[%emt 0:00:12]} 6. d3 {[%emt 0:00:16]} d6 {[%emt 0:02:56]} (6... b5 $5 {[%cal Rb5a4]} 7. Bb3 d6 $11) 7. Re1 {[%emt 0:03:07] C84: Closed Ruy Lopez: Unusual White 6th moves.} O-O {[%emt 0:01:14]} (7... b5 $5 {[%cal Rb5a4]} 8. Bb3 O-O $11) 8. Bd2 {[%emt 0:00:25]} Re8 {[%emt 0:04:44]} (8... b5 $5 9. Bb3 $8 Bg4 $11) 9. h3 {[%emt 0:04:25] The position is equal.} h6 {[%emt 0:00:50]} 10. a3 {[%emt 0:20:01]} Bf8 {[%emt 0:03:29] [#]} 11. Nc3 $146 {[%emt 0:02:02]} ({Predecessor:} 11. c4 Bd7 12. Nc3 Ne7 13. Bxd7 Qxd7 14. Nd5 Nfxd5 15. cxd5 c6 16. dxc6 Nxc6 17. Qb3 {1-0 (54) Puranik,A (2608)-Matlakov,M (2671) Chess.com INT 2022}) 11... b5 {[%emt 0:10:41]} 12. Bb3 {[%emt 0:00:11]} Na5 {[%emt 0:00:18]} 13. Ba2 {[%emt 0:01:10]} c5 {[%emt 0:00:07]} 14. Nd5 {[%emt 0:01:10]} Nc6 {[%emt 0:00:13]} 15. c3 {[%emt 0:05:24][%cal Bc2c3,Bc3c4][%mdl 32]} Be6 {[%emt 0:02:24]} 16. b4 {[%emt 0:07:30]} Rc8 {[%emt 0:06:58]} 17. Qb1 {[%emt 0:07:22]} Bxd5 {[%emt 0:08:52]} 18. exd5 {[%emt 0:01:26]} Ne7 {[%emt 0:00:10]} 19. c4 {[%emt 0:03:07]} cxb4 {[%emt 0:05:34]} 20. axb4 {[%emt 0:02:36]} (20. Bxb4 Ng6 $11) 20... Ng6 {[%emt 0:01:02]} 21. Bb3 {[%emt 0:12:05]} Qb6 22. Be3 {[%emt 0:01:31]} Qb7 {[%emt 0:04:38]} 23. Qa2 e4 24. dxe4 {[%emt 0:04:23]} (24. Qxa6 $2 Qxa6 25. Rxa6 exf3 26. gxf3 Ne5 $19) 24... Nxe4 {[%emt 0:12:03]} (24... Rxe4 $16 25. cxb5 (25. Qxa6 Qxa6 26. Rxa6 bxc4 $11) (25. Nd2 Rh4 $14) 25... axb5) 25. Qxa6 $18 {[%emt 0:06:50]} Qxa6 {[%emt 0:00:08]} 26. Rxa6 {[%emt 0:00:05]} bxc4 {[%emt 0:00:23] [#]} 27. Ba4 {[%emt 0:00:03]} Nc3 $2 {[%emt 0:02:50]} (27... Re7 {was necessary.} 28. Bc6 Ne5) 28. Bxe8 {[%emt 0:00:42]} Rxe8 {[%emt 0:00:04]} 29. Ra5 {[%emt 0:02:11]} Rb8 {[%emt 0:01:45]} 30. Nd4 {[%emt 0:01:33] And now Bd2 would win.} Ne7 {[%emt 0:05:58]} 31. Nc6 {[%emt 0:01:08]} Rb7 {[%emt 0:00:05]} 32. Nxe7+ {[%emt 0:03:24]} Bxe7 {[%emt 0:00:06]} 33. Bd4 {[%emt 0:01:10]} Bf6 {[%emt 0:00:11]} 34. Bxf6 {[%emt 0:00:35]} gxf6 {[%emt 0:00:01][%mdl 4096] Endgame KRR-KRN} 35. Re3 {[%emt 0:00:12]} Nb5 {[%emt 0:00:21]} 36. Ra8+ {[%emt 0:01:15]} Kh7 {[%emt 0:00:07]} 37. Rc8 {[%emt 0:01:44]} c3 {[%emt 0:00:40]} 38. g4 {[%emt 0:01:16]} f5 {[%emt 0:01:05]} 39. Kg2 {[%emt 0:03:35]} Kg6 {[%emt 0:05:05]} 40. Kg3 {[%emt 0:00:00]} (40. Rc4 $18) 40... Nd4 {[%emt 0:00:00]} (40... Ra7 $16 41. Ree8 Kf6) 41. Rc4 {[%emt 0:12:28]} ({Worse is} 41. Rexc3 Ne2+ 42. Kf3 Nxc3 43. Rxc3 Rxb4 $11) 41... c2 {[%emt 0:06:30]} (41... Nb5 {might work better.} 42. Re8 Kf6) 42. Re1 {[%emt 0:03:10]} (42. Rxd4 $2 {perishes.} c1=Q 43. Rf3 fxg4 44. Rxg4+ Kh7 $19) 42... c1=Q {[%emt 0:00:46]} 43. Rcxc1 {[%emt 0:01:07]} Rxb4 {[%emt 0:00:05]} 44. Rb1 {[%emt 0:02:18]} Ne2+ {[%emt 0:08:23]} 45. Kf3 {[%emt 0:02:51]} ({Not} 45. Rxe2 Rxb1 46. gxf5+ Kf6 $11) 45... Rxb1 {[%emt 0:01:11] [#]} (45... Nd4+ 46. Kg3 Rb5 47. Rxb5 Nxb5) 46. Rxb1 {[%emt 0:00:05] KR-KN} Nc3 {[%emt 0:00:02]} 47. Rb6 {[%emt 0:00:26]} Nxd5 {[%emt 0:01:21]} 48. Rxd6+ {[%emt 0:00:05] White mates.} Nf6 {[%emt 0:00:04]} 49. Kf4 {[%emt 0:00:25]} fxg4 {[%emt 0:04:21]} 50. hxg4 {[%emt 0:07:05]} Kg7 {[%emt 0:00:16]} 51. Kf5 {[%emt 0:00:23]} Nh7 {[%emt 0:02:09]} 52. f4 {[%emt 0:00:14][%cal Bf2f4,Bf4f5][%mdl 32]} Nf8 {[%emt 0:00:32]} 53. Ke5 {[%emt 0:02:23]} Ng6+ {[%emt 0:04:00]} 54. Ke4 {[%emt 0:00:06]} Nf8 {[%emt 0:00:30]} 55. f5 {[%emt 0:01:50]} Nh7 {[%emt 0:00:53]} 56. Ke5 {[%emt 0:01:00]} Ng5 {[%emt 0:00:06]} 57. Ra6 {[%emt 0:03:31]} Nf3+ {[%emt 0:02:25]} 58. Kf4 {[%emt 0:00:05]} Ng5 {[%emt 0:00:40]} 59. Kg3 {[%emt 0:00:38]} Ne4+ {[%emt 0:04:56]} 60. Kf3 {[%emt 0:00:46]} Ng5+ {[%emt 0:00:36]} 61. Kf4 {[%emt 0:00:14]} Nh3+ {[%emt 0:02:07]} 62. Kg3 {[%emt 0:02:25]} Ng5 {[%emt 0:00:05]} 63. Kh4 {[%emt 0:00:13]} Ne4 {[%emt 0:00:50]} 64. Ra4 {[%emt 0:00:43]} Nf6 {[%emt 0:03:22]} 65. g5 {[%emt 0:00:11]} hxg5+ {[%emt 0:00:20]} 66. Kxg5 {[%emt 0:00:04]} Nh7+ {[%emt 0:01:57]} 67. Kf4 {[%emt 0:00:05]} Kf6 {[%emt 0:01:06]} 68. Ra6+ {[%emt 0:00:04]} Kg7 {[%emt 0:00:04]} 69. Ke5 {[%emt 0:00:21]} Ng5 {[%emt 0:02:39]} 70. f6+ {[%emt 0:02:44]} Kg6 {[%emt 0:00:04]} 71. Ra3 {[%emt 0:00:07]} Ne6 {[%emt 0:00:30]} 72. Rg3+ {[%emt 0:00:21]} Kh6 {[%emt 0:00:22]} 73. Rg4 {[%emt 0:01:03]} Kh7 {[%emt 0:00:39]} 74. Kd6 {[%emt 0:00:36]} Nf8 {[%emt 0:02:10]} 75. Rg7+ {[%emt 0:00:28]} Kh8 {[%emt 0:00:36]} 76. Rxf7 {[%emt 0:00:39]} Ng6 {[%emt 0:00:06]} 77. Rg7 {[%emt 0:00:29]} Nf4 {[%emt 0:00:11]} 78. Rg5 {[%emt 0:00:16] Weighted Error Value: White=0.11 (very precise) /Black=0.33} 1-0

[Event "Hungarian Championship Women 2022"]
[Site "Budapest"]
[Date "2022.12.08"]
[Round "4.3"]
[White "Havanecz, Bianka"]
[Black "Erdos, Boglarka"]
[Result "1-0"]
[ECO "D78"]
[WhiteElo "2210"]
[BlackElo "2180"]
[Annotator "TA"]
[PlyCount "57"]
[EventDate "2022.12.03"]
[EventType "tourn"]
[EventCountry "HUN"]
[SourceTitle "playchess.com"]
[Source "ChessBase"]
[SourceQuality "1"]
[TimeControl "40/5400+30:1800+30"]

{[%evp 14,57,0,0,5,0,40,42,36,14,55,35,25,43,144,142,140,95,94,33,107,60,69,64,52,75,227,231,215,236,330,325,543,518,590,601,656,640,784,791,912,880,1116,1110,1887,1243]} 1. Nf3 {[%emt 0:00:48]} Nf6 {[%emt 0:01:34]} 2. g3 {[%emt 0:00:06]} g6 {[%emt 0:01:36]} 3. Bg2 {[%emt 0:00:06]} Bg7 {[%emt 0:00:11]} 4. O-O {[%emt 0:00:07]} d5 {[%emt 0:04:51]} 5. d4 {[%emt 0:00:42]} O-O {[%emt 0:00:13]} 6. c4 {[%emt 0:00:12]} c6 {[%emt 0:00:10][%cal Bc7c6,Bc6c5][%mdl 32]} 7. b3 {[%emt 0:05:32] 7.Nc3 is a critical line.} dxc4 {[%emt 0:16:43]} 8. bxc4 {[%emt 0:00:06]} c5 $1 {[%emt 0:00:04] D78: Fianchetto Grünfeld: 6 0-0 c6.} 9. e3 {[%emt 0:00:51][%cal Be2e3,Be3d4,Bd4d5][%mdl 32]} (9. dxc5 $2 Nh5 $19) 9... Nfd7 {[%emt 0:06:21]} (9... Nc6 $5 {[%cal Rc8g4]}) 10. Bb2 {[%emt 0:01:39]} Nc6 {[%emt 0:00:25] [#] White is slightly better.} 11. Qe2 $146 {[%emt 0:05:36]} ({Predecessor:} 11. Nbd2 Nb6 12. Rc1 Be6 13. Ng5 Bd7 14. Nb3 e5 15. dxc5 Qxg5 16. cxb6 Bg4 17. h4 {1-0 (45) Kholmov,R-Shaposhnikov,Y Tashkent 1958}) 11... Qb6 {[%emt 0:13:39][%cal Rc5d4] Inhibits d5.} 12. Rd1 {[%emt 0:00:17]} cxd4 {[%emt 0:07:57]} 13. exd4 {[%emt 0:00:24]} Re8 {[%emt 0:11:14]} ({Black should play} 13... e5 $1 $14) 14. Nc3 $16 {[%emt 0:13:33]} Nf6 {[%emt 0:00:45]} 15. d5 {[%emt 0:12:34]} Na5 {[%emt 0:05:18][%cal Oe7e5]} 16. Ne5 {[%emt 0:00:19]} (16. Rac1 $16) 16... Ng4 {[%emt 0:06:15]} 17. Na4 {[%emt 0:05:44]} ({Reject} 17. Nxg4 $6 Bxg4 18. Qxg4 Qxb2 $11) (17. c5 $16 Qa6 18. Qxa6 (18. Nxg4 Qxe2 19. Nxe2 Bxb2 $17) 18... bxa6 19. Nd3) 17... Qb4 $14 {[%emt 0:02:09]} 18. Nxg4 {[%emt 0:00:15]} Bxg4 {[%emt 0:06:08]} 19. Qxg4 {[%emt 0:00:07] aiming for Bxg7.} Bxb2 {[%emt 0:00:51] This move loses the game for Black.} (19... Qxa4 $16 20. Bxg7 Kxg7) 20. Nxb2 $18 {[%emt 0:00:05]} Qxb2 {[%emt 0:00:04] [#]} 21. c5 $1 {[%emt 0:06:08][%cal Bc4c5,Bc5c6,Bc6c7][%mdl 32] Black must now prevent Qa4.} Qb5 {[%emt 0:03:26] Prevents Qa4.} 22. Rac1 {[%emt 0:03:36]} Rac8 $2 {[%emt 0:01:51]} (22... Rec8 23. Qd4 Qd7) 23. Bf1 {[%emt 0:03:39] White is clearly winning.} Qb2 {[%emt 0:00:06]} 24. Qa4 {[%emt 0:03:05]} b6 {[%emt 0:00:08]} 25. Ba6 {[%emt 0:01:06]} Rcd8 {[%emt 0:09:45]} 26. c6 {[%emt 0:00:07]} Rxd5 {[%emt 0:00:29]} 27. c7 {[%emt 0:00:20]} b5 {[%emt 0:01:09]} 28. Qxa5 {[%emt 0:00:48]} Rf5 {[%emt 0:00:29]} 29. Qd2 {[%emt 0:00:20] Weighted Error Value: White=0.14 (very precise) /Black=0.61} ({And not} 29. c8=R Qxf2+ 30. Kh1 Qf3+ 31. Kg1 Qf2+ 32. Kh1 Qf3+ 33. Kg1 Qf2+ $11) 1-0

[Event "Hungarian Championship Women 2022"]
[Site "Budapest"]
[Date "2022.12.08"]
[Round "4.4"]
[White "Demeter, Dorina"]
[Black "Szente Varga, Fruzsina"]
[Result "1-0"]
[ECO "D78"]
[WhiteElo "2149"]
[BlackElo "2075"]
[Annotator "TA"]
[PlyCount "79"]
[EventDate "2022.12.03"]
[EventType "tourn"]
[EventCountry "HUN"]
[SourceTitle "playchess.com"]
[Source "ChessBase"]
[SourceQuality "1"]
[TimeControl "40/5400+30:1800+30"]

{[%evp 11,79,27,22,0,31,-25,17,12,93,52,51,48,51,53,43,27,40,15,10,8,18,0,22,18,56,62,58,39,46,42,93,46,45,48,190,91,104,104,278,272,265,270,502,491,1004,1021,950,1004,887,898,6107,6095,5330,3551,1698,759,1352,1282,1416,1232,1150,1125,1233,1221,1279,1269,1003,939,939,821]} 1. Nf3 {[%emt 0:00:45]} Nf6 {[%emt 0:00:36]} 2. g3 {[%emt 0:00:31]} g6 {[%emt 0:00:44]} 3. Bg2 {[%emt 0:00:19]} Bg7 {[%emt 0:00:14]} 4. O-O {[%emt 0:00:19]} d5 {[%emt 0:05:23]} 5. d4 {[%emt 0:01:22]} O-O {[%emt 0:00:22]} 6. c4 {[%emt 0:00:57]} c6 {[%emt 0:01:09]} 7. a4 {[%emt 0:01:01] 7.Nc3 is setting a new trend. D78: Fianchetto Grünfeld: 6 0-0 c6.} Ne4 {[%emt 0:05:03]} 8. a5 {[%emt 0:06:45] [#]} (8. Nc3 $14) 8... Bf5 $146 {[%emt 0:14:20]} (8... dxc4 9. Nc3 Nd6) ({Predecessor:} 8... a6 9. Qb3 dxc4 10. Qxc4 Be6 11. Qb4 Nd6 12. Nc3 Nb5 13. Bf4 f6 14. Rfd1 Bf7 {1-0 (32) Cordova,E (2592)-Khachiyan,M (2481) Chess.com INT 2020}) 9. Qb3 {[%emt 0:08:06] The position is equal.} Qc8 {[%emt 0:09:37]} (9... c5) (9... Nd6 $11) 10. Nc3 {[%emt 0:15:14]} dxc4 {[%emt 0:16:28]} 11. Qxc4 {[%emt 0:00:10]} Nd6 {[%emt 0:00:20]} 12. Qa4 {[%emt 0:06:25]} Na6 {[%emt 0:04:35]} 13. Bg5 {[%emt 0:13:17]} Re8 {[%emt 0:01:51]} 14. Rac1 {[%emt 0:07:47]} Qe6 {[%emt 0:14:50]} 15. Nd2 {[%emt 0:09:43] Prevents Qc4.} Bh3 {[%emt 0:04:05]} 16. e4 {[%emt 0:05:21]} Bxg2 {[%emt 0:00:20]} (16... c5 $5 {[%cal Rh3g2]} 17. d5 Qg4 18. Bxh3 Qxh3 $11) 17. Kxg2 {[%emt 0:00:06]} b5 {[%emt 0:07:00]} (17... Red8 {simplifies} 18. Rcd1 h6 19. Be3 Rac8) 18. axb6 {[%emt 0:03:52]} axb6 {[%emt 0:00:03]} 19. Qxc6 {[%emt 0:01:41]} Nb4 {[%emt 0:04:46] Inhibits d5.} 20. Qxb6 {[%emt 0:01:07]} Nd3 {[%emt 0:04:16]} (20... Rab8 $14 21. d5 Qxe4+ 22. Ndxe4 (22. Ncxe4 Rxb6 23. Be3 Rb5 $11) 22... Rxb6) 21. Ra1 {[%emt 0:01:47]} (21. Rb1 $16) 21... Rab8 $1 $14 {[%emt 0:01:49] Prevents d5.} 22. Qa6 {[%emt 0:01:05]} Nxb2 {[%emt 0:00:49]} (22... Nb4 $1 $14 23. Qe2 Bxd4) 23. Be3 {[%emt 0:01:03]} (23. e5 $18 {and White stays clearly on top.} Qg4 24. Bf4) 23... Rec8 {[%emt 0:01:56]} 24. Rfc1 {[%emt 0:02:27]} Qd7 $2 {[%emt 0:00:14]} (24... Ndc4 $16) 25. Nd5 $18 {[%emt 0:03:25]} Rxc1 {[%emt 0:01:05]} 26. Rxc1 {[%emt 0:00:02] [#] Threatens to win with Rc7.} e6 $2 {[%emt 0:00:56]} (26... Nxe4 $2 27. Qc6 Qxc6 28. Nxe7+ (28. Rxc6 Nxd2 29. Bxd2 Bxd4 $11) 28... Kf8 29. Nxc6 $18) (26... Qb7 {was called for.} 27. Qxb7 Rxb7) 27. Rc7 {[%emt 0:02:15] White is clearly winning.} Qb5 {[%emt 0:00:32]} (27... Qd8 $142) 28. Ne7+ {[%emt 0:00:24]} Kh8 {[%emt 0:00:03]} 29. Qxd6 {[%emt 0:00:12]} Nd1 {[%emt 0:00:10]} 30. Qf4 {[%emt 0:02:54]} e5 {[%emt 0:01:04]} 31. Qxf7 {[%emt 0:01:23][%cal Oe7g6] [#] White wants to mate with Nxg6+!} Nxe3+ {[%emt 0:00:22]} 32. fxe3 {[%emt 0:00:37][%cal Oe7g6] White threatens Nxg6+! and mate.} Qe2+ {[%emt 0:00:03]} 33. Qf2 {[%emt 0:00:18]} Qg4 {[%emt 0:00:52]} 34. h3 {[%emt 0:00:25]} Qd1 {[%emt 0:00:05]} 35. Rc8+ {[%emt 0:00:29]} Rxc8 {[%emt 0:00:05]} 36. Nxc8 exd4 37. exd4 {[%emt 0:00:10]} Qc2 {[%emt 0:01:42]} 38. Nd6 {[%emt 0:00:40]} Qc6 {[%emt 0:00:40]} 39. Nf7+ {[%emt 0:01:23]} Kg8 {[%emt 0:00:04]} 40. Ne5 {[%emt 0:00:00] Weighted Error Value: White=0.21 (precise) /Black=0.46} 1-0